bitfinex-derivatives/quotes_ETHF0:USTF0_20251009
["timestamp","ask_amount","ask_price","bid_price","bid_amount"]
[1760016783533,3.2078,4385.4,4385.0,0.1361]
[1760016783735,0.231,4385.3,4385.0,0.1361]
[1760016783937,0.231,4385.2,4385.1,0.38380077]
[1760016784534,0.64298995,4385.2,4385.1,0.38380077]
[1760016784734,0.00168995,4385.2,4385.1,0.38380077]
[1760016785238,3.2078,4386.2,4386.1,0.3734]
[1760016785439,3.2078,4386.2,4385.5,0.1361]
[1760016785642,2.96585995,4386.1,4385.5,0.5095]
[1760016785931,2.96585995,4386.1,4385.6,0.3734]
[1760016785932,3.2078,4385.7,4385.6,0.3734]
[1760016786134,3.4388,4385.7,4385.6,0.38380077]
[1760016786331,3.44099722,4385.7,4385.6,0.38621447]
[1760016789141,11.43889249,4385.7,4385.0,0.1361]
[1760016789341,11.43889249,4385.7,4384.6,0.3734]
[1760016789342,0.41035,4384.7,4384.6,0.3734]
[1760016789547,0.64135,4384.7,4384.6,0.3734]
[1760016789742,0.4104,4384.2,4384.1,0.3734]
[1760016790035,0.4104,4384.2,4383.6,0.3734]
[1760016790036,0.41044,4383.7,4383.6,0.3734]
[1760016790242,3.84924,4383.7,4383.6,0.00268166]
[1760016790444,0.4105,4383.1,4383.0,0.1361]
[1760016790644,3.8493,4383.1,4383.0,0.1361]
[1760016790836,3.2078,4383.1,4383.0,0.5095]
[1760016791145,3.4388,4383.1,4383.0,0.5095]
[1760016791334,0.41057,4382.3,4382.2,3.2078]
[1760016791530,0.64368757,4382.3,4382.2,0.00212862]
[1760016791731,0.41268757,4382.3,4382.2,0.37552862]
[1760016791939,3.43742927,4382.3,4382.2,0.00212862]
[1760016792238,14.50023,4381.8,4378.5,0.1361]
[1760016792435,3.2078,4380.3,4379.3,3.2078]
[1760016792642,3.2078,4380.9,4380.1,0.3602]
[1760016792840,0.231,4380.8,4380.7,0.3602]
[1760016793139,3.2078,4381.5,4381.3,0.3602]
[1760016793340,0.231,4381.9,4381.8,0.5038]
[1760016793536,0.00211757,4382.3,4381.9,0.3602]
[1760016793739,0.3624,4385.7,4382.7,10.26347]
[1760016793943,3.2078,4385.8,4384.8,0.1436]
[1760016794239,0.231,4385.7,4384.6,3.2078]
[1760016794435,0.231,4385.7,4382.4,0.1436]
[1760016794436,0.1532,4384.8,4384.1,3.2078]
[1760016794637,0.3624,4384.6,4384.4,0.01013942]
[1760016794835,0.231,4384.7,4384.4,0.01013942]
[1760016795139,0.00232979,4384.8,4384.5,0.02027884]
[1760016795341,3.2078,4384.7,4384.5,0.02027884]
[1760016795537,3.2078,4384.7,4384.1,0.00163999]
[1760016795538,6.14098715,4384.7,4384.1,0.00163999]
[1760016795840,3.361,4384.2,4384.1,0.00163999]
[1760016796047,3.592,4384.2,4384.1,0.00163999]
[1760016796338,11.58492967,4384.2,4384.1,0.01177941]
[1760016796540,3.592,4384.2,4384.1,0.02191883]
[1760016796742,6.58492967,4384.2,4384.1,0.02191883]
[1760016796934,6.58492967,4384.2,4384.1,0.03205825]
[1760016797137,6.35392967,4384.2,4384.1,0.03205825]
[1760016797341,0.1532,4384.2,4384.1,0.03205825]
[1760016797649,0.7466,4384.2,4384.1,0.04219767]
[1760016797836,0.7466,4384.2,4384.1,0.46273709]
[1760016797837,0.231,4384.2,4384.1,0.46273709]
[1760016798237,0.231,4384.2,4384.1,0.06247651]
[1760016798441,3.8012,4384.2,4384.1,0.06247651]
[1760016798641,6.95067563,4384.2,4384.1,0.06563818]
[1760016798840,0.41045,4383.7,4383.2,40.8]
[1760016799142,0.3624,4383.2,4382.2,3.2078]
[1760016799345,0.3842,4383.6,4381.7,0.3602]
[1760016799346,0.3624,4382.9,4381.7,0.3602]
[1760016799537,0.41054,4382.8,4381.8,40.8]
[1760016799741,0.41054,4382.8,4381.9,0.41061]
[1760016799742,0.3624,4382.2,4381.9,0.41061]
[1760016799946,0.3624,4382.2,4381.9,0.00203303]
[1760016800443,0.3624,4382.0,4381.9,0.00203303]
[1760016801036,3.30882636,4382.0,4381.9,0.00203303]
[1760016801237,2.94642636,4382.0,4380.5,3.2078]
[1760016801547,3.2078,4381.7,4381.1,0.41068]
[1760016801738,3.2078,4381.7,4381.2,0.41068]
[1760016802046,3.2078,4381.7,4381.1,40.8]
[1760016802339,3.21031179,4381.7,4381.1,40.80184646]
[1760016802844,3.21031179,4381.7,4381.2,0.41068]
[1760016803044,0.3624,4381.6,4381.2,0.41068]
[1760016803242,0.3624,4381.4,4381.1,40.80184646]
[1760016803448,0.231,4381.5,4381.1,0.00184646]
[1760016803649,3.7234,4381.2,4381.1,0.00184646]
[1760016803837,3.8012,4381.2,4381.1,0.00184646]
[1760016805154,3.9544,4381.2,4381.1,0.00184646]
[1760016805348,11.58505697,4381.2,4379.9,3.2078]
[1760016805654,0.3624,4379.9,4379.4,3.2078]
[1760016805943,0.3624,4380.0,4379.7,0.41081]
[1760016806146,0.5934,4379.9,4379.8,0.01702015]
[1760016806342,0.5934,4379.9,4379.8,0.01967618]
[1760016806750,0.5934,4379.9,4379.8,40.81967618]
[1760016806951,0.5934,4379.9,4379.8,40.80265603]
[1760016807247,3.51436797,4379.9,4379.8,0.02958712]
[1760016807451,8.51436797,4379.9,4379.8,0.02958712]
[1760016807653,3.51436797,4379.9,4379.8,0.02958712]
[1760016807949,8.51436797,4379.9,4379.8,0.02958712]
[1760016808149,0.4109,4378.8,4378.2,3.2078]
[1760016808354,0.231,4378.7,4378.3,0.77114]
[1760016808649,3.26410659,4378.7,4378.2,3.568]
[1760016808849,3.03310659,4378.7,4378.3,0.3602]
[1760016809154,0.231,4378.6,4378.3,0.00263704]
[1760016809349,0.23312158,4378.6,4378.3,0.00263704]
[1760016809553,0.23312158,4378.6,4378.3,0.77377704]
[1760016809753,0.23312158,4378.6,4378.4,0.3602]
[1760016810048,0.23312158,4378.6,4378.4,0.77114]
[1760016810252,2.90537302,4378.5,4378.4,0.77114]
[1760016810554,3.2078,4380.2,4379.9,0.3602]
[1760016810749,3.2078,4380.2,4379.4,0.1436]
[1760016810750,3.2078,4380.2,4380.1,0.3602]
[1760016811446,3.21045869,4380.2,4380.1,0.3602]
[1760016811648,3.44145869,4380.2,4380.1,0.3602]
[1760016812444,0.23365869,4380.2,4380.1,0.3602]
[1760016813253,0.23365869,4380.2,4379.6,3.2078]
[1760016813451,3.44145869,4380.2,4379.5,0.3602]
[1760016813656,0.4108,4379.9,4379.5,0.3602]
[1760016813954,0.41082,4379.7,4379.2,0.41086]
[1760016814151,0.231,4379.8,4379.3,0.41085]
[1760016814353,0.231,4379.8,4379.4,0.41084]
[1760016814655,0.231,4380.1,4380.0,0.3602]
[1760016815058,3.21045869,4380.2,4380.1,0.41078]
[1760016815355,3.21045869,4380.2,4380.1,0.77098]
[1760016815752,3.2078,4381.1,4380.2,0.3602]
[1760016816049,3.2078,4381.1,4381.0,0.7709]
[1760016816453,3.2078,4381.7,4381.2,1.02669]
[1760016816650,3.2078,4382.3,4382.2,0.3602]
[1760016816952,3.51918585,4382.3,4382.2,0.00275321]
[1760016817261,3.44108585,4382.3,4382.2,0.77353321]
[1760016817461,0.23328585,4382.3,4382.2,0.77353321]
[1760016817948,0.23328585,4382.3,4381.2,0.1436]
[1760016817949,0.41074,4380.6,4379.8,0.4108]
[1760016818152,0.231,4380.5,4379.3,3.2078]
[1760016818346,0.231,4380.5,4379.2,0.41086]
[1760016818347,3.2078,4379.6,4379.2,0.41086]
[1760016818543,3.4398,4379.6,4378.9,0.3602]
[1760016818958,3.4398,4379.6,4379.3,0.77105]
[1760016819154,3.4398,4379.6,4378.9,0.41378334]
[1760016819155,0.41084,4379.5,4378.9,0.41378334]
[1760016819347,3.4398,4379.6,4378.9,0.00289334]
[1760016819552,3.85063,4379.6,4379.1,0.41087]
[1760016819847,3.85063,4379.6,4379.1,0.3602]
[1760016820046,0.41088,4379.0,4378.9,0.00289334]
[1760016820243,0.23410712,4379.0,4378.9,0.00289334]
[1760016821149,0.23410712,4379.0,4378.1,3.2078]
[1760016821150,4.80924,4378.9,4377.6,3.2078]
[1760016821349,3.2078,4377.7,4376.6,0.3602]
[1760016821551,0.232,4377.6,4376.5,0.3602]
[1760016821851,0.232,4377.5,4377.0,0.1436]
[1760016822057,0.232,4377.6,4377.5,0.3602]
[1760016822253,0.232,4377.6,4377.5,0.36310934]
[1760016822455,3.4398,4377.7,4377.6,0.41101]
[1760016822754,3.4398,4377.7,4377.5,0.00290934]
[1760016822950,3.2078,4377.7,4377.6,0.573]
[1760016823656,3.2078,4377.7,4377.6,5.573]
[1760016823851,0.41091,4378.8,4377.6,5.573]
[1760016823852,3.2078,4378.2,4377.6,5.2285]
[1760016824051,3.2078,4378.2,4378.1,0.573]
[1760016824450,3.2078,4378.2,4377.8,0.5852]
[1760016824651,3.2078,4378.2,4377.9,0.41098]
[1760016824956,3.2078,4378.2,4377.6,0.2285]
[1760016825157,3.2078,4378.2,4377.7,0.411]
[1760016825355,0.41098,4378.0,4377.5,0.00290934]
[1760016825560,3.2078,4377.6,4377.5,0.00290934]
[1760016825858,3.4398,4377.6,4377.5,0.00290934]
[1760016826156,3.2078,4377.6,4377.5,0.00290934]
[1760016826362,3.4398,4377.6,4377.5,0.00290934]
[1760016826856,3.9015,4377.6,4377.5,0.00290934]
[1760016827053,3.2078,4377.6,4377.5,0.00290934]
[1760016827263,3.4398,4377.6,4377.5,0.58810934]
[1760016827961,3.4398,4377.6,4377.5,0.99912934]
[1760016828163,3.2078,4377.6,4377.5,0.99912934]
[1760016828357,3.3905,4378.2,4378.1,0.41097]
[1760016828561,3.6225,4378.2,4378.1,0.41097]
[1760016828755,4.49516,4378.2,4377.5,0.00290934]
[1760016829257,0.41098,4378.0,4377.5,0.58810934]
[1760016829558,0.232,4377.9,4377.5,0.41392934]
[1760016829757,3.2078,4377.7,4377.5,0.58810934]
[1760016829954,0.232,4377.6,4377.5,0.58810934]
[1760016830150,0.232,4377.6,4377.5,41.38810934]
[1760016830356,3.2078,4377.7,4377.6,0.62471]
[1760016830555,3.2078,4377.7,4377.6,1.20991]
[1760016830753,0.232,4377.8,4377.7,0.5852]
[1760016832055,0.232,4377.8,4377.7,41.3852]
[1760016832356,3.3905,4378.2,4378.1,0.41097]
[1760016832558,3.3905,4378.2,4378.1,0.99617]
[1760016832753,0.1827,4378.2,4378.1,5.99617]
[1760016833151,0.1827,4378.2,4378.1,46.79617]
[1760016834154,0.1827,4378.2,4377.8,3.2078]
[1760016834155,3.3905,4378.2,4377.6,0.7989]
[1760016834359,3.3905,4378.2,4378.1,0.5852]
[1760016835056,3.3905,4378.2,4378.1,0.60263444]
[1760016835258,3.2078,4378.8,4378.2,1.0274]
[1760016835466,3.2078,4378.8,4378.6,0.99612]
[1760016835655,3.2078,4378.8,4378.7,0.02615166]
[1760016835957,3.2078,4378.8,4378.7,0.61645302]
[1760016836657,0.00210712,4379.0,4378.8,0.4109]
[1760016836854,0.00210712,4379.0,4378.9,0.5852]
[1760016837057,3.2078,4379.8,4379.7,0.41082]
[1760016837255,0.4617,4380.8,4380.0,1.02697]
[1760016837455,3.2078,4380.6,4380.4,0.41075]
[1760016837659,3.2078,4380.6,4380.5,0.5852]
[1760016838057,3.21021939,4380.6,4380.5,0.61645302]
[1760016839360,3.67191939,4380.6,4380.5,0.03125302]
[1760016839660,3.21021939,4380.6,4380.5,0.03125302]
[1760016839861,1.48859,4380.4,4379.2,0.41086]
[1760016840158,0.41086,4379.3,4379.0,3.2078]
[1760016840362,0.41087,4379.2,4379.1,40.8]
[1760016840754,0.232,4379.3,4379.1,40.8]
[1760016841060,0.232,4379.3,4378.3,3.2078]
[1760016841061,0.41092,4378.6,4378.3,3.2078]
[1760016841359,0.64293,4378.6,4378.3,4.20394]
[1760016841563,0.41093,4378.5,4378.4,40.8]
[1760016842062,0.232,4378.6,4378.5,0.5852]
[1760016842262,0.41093,4378.5,4378.4,40.8]
[1760016842564,0.41093,4378.5,4378.3,3.2078]
[1760016842860,0.232,4378.6,4378.3,3.61874]
[1760016843359,0.41093,4378.5,4378.3,3.2078]
[1760016843863,0.232,4378.6,4378.3,3.61874]
[1760016844157,0.232,4378.6,4378.4,0.5852]
[1760016844458,3.2078,4379.2,4378.4,0.5852]
[1760016844656,0.77878264,4379.1,4379.0,0.5852]
[1760016844851,0.77878264,4379.1,4379.0,0.7989]
[1760016845056,3.2078,4379.2,4379.1,0.41087]
[1760016845260,35.631,4380.3,4379.1,9.46699]
[1760016845454,0.232,4380.1,4380.0,0.99598]
[1760016845659,0.77894073,4380.1,4379.5,0.7989]
[1760016845960,1.00864073,4380.0,4379.1,0.5852]
[1760016846164,1.02712,4379.4,4378.3,3.2078]
[1760016846461,0.41093,4378.5,4378.3,3.2078]
[1760016846766,0.41093,4378.5,4378.4,40.8]
[1760016846965,0.232,4378.6,4378.5,0.5852]
[1760016847361,0.41085,4379.4,4378.6,0.5852]
[1760016847561,0.54803615,4379.3,4379.2,0.5852]
[1760016847754,0.41079,4380.0,4379.4,0.5852]
[1760016847960,0.78051583,4379.9,4379.8,0.5852]
[1760016848161,0.41083,4379.7,4379.5,41.5989]
[1760016848461,3.61859,4380.1,4379.6,0.5852]
[1760016848653,0.54859836,4380.0,4379.5,41.0137]
[1760016848854,0.232,4379.9,4379.8,0.41081]
[1760016849055,0.78058834,4379.9,4379.8,0.99601]
[1760016849257,0.78058834,4379.9,4379.8,0.5852]
[1760016849659,0.54858834,4379.9,4379.8,0.5852]
[1760016850157,0.41079,4380.0,4379.9,0.5852]
[1760016850760,0.41078,4380.2,4379.9,0.5852]
[1760016851057,3.21021939,4380.6,4380.4,0.41075]
[1760016851253,3.21021939,4380.6,4380.5,0.7989]
[1760016851959,0.41081,4379.9,4379.2,3.2078]
[1760016852158,0.41082,4379.7,4379.4,0.5852]
[1760016852361,0.41082,4379.7,4379.5,40.8]
[1760016852761,0.41083,4379.6,4379.4,0.5852]
[1760016852957,0.41086,4379.3,4379.2,3.2078]
[1760016853367,0.88256,4379.3,4379.2,3.2078]
[1760016853563,0.41086,4379.3,4379.2,3.2078]
[1760016853866,3.4398,4379.6,4379.0,0.5599]
[1760016854062,3.4398,4379.6,4378.6,44.0078]
[1760016854264,0.4109,4378.9,4378.7,0.41091]
[1760016854471,2.91521481,4379.5,4378.7,0.41091]
[1760016854472,0.41091,4378.8,4378.7,0.5599]
[1760016854667,0.41096,4378.2,4378.1,0.5599]
[1760016854967,0.41096,4378.2,4378.0,3.2078]
[1760016855466,0.41096,4378.2,4378.0,3.7677]
[1760016855669,0.41094,4378.4,4378.1,0.5599]
[1760016855865,0.41094,4378.4,4378.0,3.84098]
[1760016856067,0.41093,4378.5,4378.1,0.41097]
[1760016856370,0.4717,4379.2,4378.3,0.41094]
[1760016856570,0.41093,4378.5,4378.4,0.5599]
[1760016856759,0.4717,4379.7,4378.6,0.5599]
[1760016857067,0.232,4379.1,4378.9,0.5599]
[1760016857268,0.232,4379.1,4379.0,0.01289801]
[1760016857463,3.2078,4379.6,4379.0,0.23509801]
[1760016857665,3.2078,4379.6,4379.5,0.5599]
[1760016858069,3.2078,4379.6,4379.5,0.7821]
[1760016858366,8.6795,4379.6,4379.5,0.01289801]
[1760016858869,0.41082,4379.7,4379.6,0.5599]
[1760016859067,0.64282,4379.7,4379.5,0.57279801]
[1760016859261,0.64282,4379.7,4379.6,0.5599]
[1760016859460,3.2078,4380.1,4379.7,0.5599]
[1760016859766,3.2078,4380.1,4380.0,0.5599]
[1760016859962,3.2078,4380.1,4380.0,0.7821]
[1760016860565,3.21021939,4380.6,4380.2,0.5599]
[1760016860771,3.21021939,4380.6,4380.5,0.7821]
[1760016860957,3.21021939,4380.6,4380.5,0.5599]
[1760016861664,11.59784638,4380.6,4380.5,0.01289801]
[1760016861869,1.02694,4380.2,4379.2,0.5599]
[1760016862064,1.49862,4380.3,4379.1,0.5599]
[1760016862065,0.41084,4379.5,4379.1,0.5599]
[1760016862270,0.41087,4379.2,4379.0,0.2222]
[1760016862467,0.232,4379.6,4379.1,0.5599]
[1760016862671,0.232,4379.8,4379.3,0.41085]
[1760016862876,0.232,4379.8,4379.5,0.2222]
[1760016863166,0.41076,4380.3,4380.0,0.2222]
[1760016863369,0.232,4380.5,4380.1,0.5599]
[1760016863571,0.41077,4380.3,4380.0,0.2222]
[1760016863766,0.41077,4380.3,4380.1,0.5599]
[1760016863959,0.232,4380.5,4380.1,0.5599]
[1760016863960,0.41077,4380.2,4380.1,0.5599]
[1760016864169,0.41076,4380.4,4380.2,0.5599]
[1760016864367,0.00241939,4380.6,4380.5,0.2222]
[1760016864563,0.00241939,4380.6,4380.5,0.7821]
[1760016865563,0.00241939,4380.6,4380.1,3.7677]
[1760016865763,0.41076,4380.3,4380.2,40.8]
[1760016865968,0.00241939,4380.6,4380.5,0.2222]
[1760016866170,0.00241939,4380.6,4380.5,0.7821]
[1760016867168,0.00241939,4380.6,4380.5,0.5599]
[1760016867371,0.41076,4380.3,4380.2,41.3599]
[1760016867669,0.41314939,4380.6,4380.5,0.2222]
[1760016867873,0.00241939,4380.6,4380.5,0.7821]
[1760016868477,0.00241939,4380.6,4380.5,1.0141]
[1760016868672,0.1825,4381.2,4381.1,0.5599]
[1760016868872,0.41068,4381.2,4381.1,0.5599]
[1760016869274,0.41066,4381.4,4381.2,0.41067]
[1760016869580,0.41066,4381.4,4381.3,0.5599]
[1760016869773,0.41326975,4381.4,4381.3,0.5599]
[1760016870169,0.00260975,4381.4,4381.3,0.5599]
[1760016871471,0.00260975,4381.4,4381.3,41.5919]
[1760016872068,0.1825,4382.0,4381.5,0.2222]
[1760016872374,0.41061,4381.9,4381.8,0.5599]
[1760016873075,0.41330027,4381.9,4381.8,0.5599]
[1760016873777,0.00269027,4381.9,4381.8,0.5599]
[1760016874776,0.41066,4381.4,4381.3,40.8]
[1760016875165,0.41066,4381.4,4381.3,41.3599]
[1760016875977,0.41066,4381.4,4381.3,0.5599]
[1760016876373,0.41066,4381.4,4381.2,41.36249966]
[1760016876573,3.2078,4381.7,4381.2,41.36249966]
[1760016876574,3.2078,4381.7,4381.5,0.2222]
[1760016876768,0.00269027,4381.9,4381.7,0.41063]
[1760016877079,0.00269027,4381.9,4381.8,0.5599]
[1760016878476,0.00269027,4381.9,4381.5,3.9899]
[1760016878477,1.26123027,4381.9,4381.5,3.9899]
[1760016878677,0.41064,4381.6,4381.5,3.43]
[1760016879083,0.41330027,4381.9,4381.5,3.43]
[1760016879279,0.00269027,4381.9,4381.8,0.5599]
[1760016879482,0.00269027,4381.9,4381.8,0.7919]
[1760016880276,3.61833,4382.8,4382.7,0.5599]
[1760016880478,0.4717,4382.7,4382.2,3.2078]
[1760016880776,0.41056,4382.4,4381.6,3.2078]
[1760016880973,1.0264,4382.5,4381.6,3.2078]
[1760016880974,0.41062,4381.8,4381.7,0.5599]
[1760016881176,0.41305012,4381.8,4381.7,41.3599]
[1760016881484,0.00243012,4381.8,4381.7,41.3599]
[1760016882082,0.00243012,4381.8,4381.7,46.3599]
[1760016882277,0.1825,4382.3,4382.2,0.97048]
[1760016882474,3.2078,4382.8,4382.7,0.97144]
[1760016882682,1.02614,4383.7,4382.8,0.5609]
[1760016882683,3.2078,4383.4,4382.8,0.5609]
[1760016882978,3.2078,4383.4,4382.8,41.3609]
[1760016882979,0.41051,4383.0,4382.8,41.3609]
[1760016883184,0.02478126,4382.9,4382.8,41.3609]
[1760016883377,0.02478126,4382.9,4382.8,41.5929]
[1760016884280,0.02478126,4382.9,4382.8,49.8007]
[1760016884782,1.25803,4384.1,4382.8,49.8007]
[1760016884783,0.41043,4383.9,4383.7,0.5609]
[1760016884977,0.41044,4383.7,4383.6,0.5609]
[1760016885284,1.47804,4384.5,4383.6,0.5609]
[1760016885285,3.2078,4384.6,4384.5,0.2343]
[1760016885481,3.61812,4385.1,4384.6,0.41036]
[1760016885780,3.61812,4385.1,4384.7,0.5572]
[1760016885781,3.2102183,4385.1,4384.7,0.5572]
[1760016885980,3.2102183,4385.1,4384.6,41.21231771]
[1760016886177,3.2102183,4385.1,4385.0,0.2343]
[1760016886380,3.6205383,4385.1,4385.0,0.7915]
[1760016886582,3.2102183,4385.1,4385.0,0.7915]
[1760016887381,0.41034,4384.8,4384.6,40.80195771]
[1760016887584,0.41044,4383.8,4383.6,3.2078]
[1760016887774,1.02591,4384.6,4383.7,0.5572]
[1760016887775,0.41043,4383.9,4383.7,0.5572]
[1760016887981,0.41044,4383.8,4383.7,0.5572]
[1760016888186,0.41044,4383.8,4383.7,41.3572]
[1760016888681,0.41036,4384.6,4384.5,0.2343]
[1760016888886,0.41036,4384.6,4384.5,0.7915]
[1760016889379,0.41036,4384.6,4383.7,41.2130122]
[1760016889380,0.4518,4384.4,4383.7,41.2130122]
[1760016889576,0.41043,4383.9,4383.8,0.5572]
[1760016890377,0.41043,4383.9,4383.7,40.8025722]
[1760016890581,0.4518,4383.8,4383.7,0.0025722]
[1760016891287,5.4518,4383.8,4383.7,0.0025722]
[1760016892086,8.36318059,4383.8,4383.7,0.0025722]
[1760016892389,0.4518,4383.8,4383.7,0.0025722]
[1760016895787,0.41043,4383.9,4383.7,0.0025722]
[1760016896192,0.41043,4383.9,4383.8,0.5572]
[1760016896486,0.64143,4383.9,4383.8,0.5572]
[1760016897487,0.41042,4384.0,4383.8,0.5572]
[1760016897784,0.41043,4383.8,4383.7,0.0025722]
[1760016897985,0.41043,4383.8,4383.7,0.5597722]
[1760016898583,0.1824,4384.6,4384.5,0.7915]
[1760016898987,0.1824,4384.6,4384.5,1.0225]
[1760016899298,0.1824,4384.6,4384.5,41.8225]
[1760016899991,0.1824,4384.6,4384.5,46.8225]
[1760016900786,0.59276,4384.6,4384.5,40.8]
[1760016900986,0.59276,4384.6,4384.1,3.2078]
[1760016900987,0.41039,4384.3,4384.1,3.2078]
[1760016901190,0.231,4384.7,4384.5,0.64467]
[1760016901386,0.41036,4384.6,4384.5,0.2343]
[1760016901587,0.41043,4383.8,4383.6,3.2078]
[1760016901788,0.231,4384.5,4383.6,3.2078]
[1760016901992,0.231,4384.5,4384.3,0.5572]
[1760016901993,0.41038,4384.4,4384.3,0.5572]
[1760016902186,0.41038,4384.4,4383.6,3.2078]
[1760016902187,0.4518,4383.8,4383.6,2.6197]
[1760016902388,1.02628,4383.0,4382.1,0.5572]
[1760016902594,0.41057,4382.4,4382.2,0.41058]
[1760016902794,3.2078,4382.6,4382.5,0.7915]
[1760016903204,3.2078,4382.6,4382.5,0.79433897]
[1760016903493,3.2078,4382.6,4382.5,0.00283897]
[1760016903693,3.2078,4382.6,4382.5,0.79433897]
[1760016904302,3.2078,4382.6,4382.5,0.00283897]
[1760016904600,3.2078,4382.6,4381.0,0.2343]
[1760016904601,1.02642,4382.4,4381.0,0.2343]
[1760016904795,1.02642,4382.4,4381.1,0.5572]
[1760016904796,3.61847,4381.3,4381.1,0.5572]
[1760016904992,3.2078,4381.3,4381.1,0.5572]
[1760016905197,0.41065,4381.6,4381.5,0.2343]
[1760016905498,0.41254283,4381.6,4381.5,0.00294556]
[1760016906296,0.41071,4380.8,4380.7,3.2078]
[1760016906795,0.41071,4380.8,4380.7,3.765]
[1760016907293,0.231,4381.0,4380.7,0.00277254]
[1760016907495,0.41071,4380.9,4380.8,0.5572]
[1760016907694,3.2078,4381.3,4381.1,0.96788]
[1760016907999,0.41253283,4381.6,4381.5,0.7915]
[1760016908594,0.00189283,4381.6,4381.5,0.7915]
[1760016910298,0.41068,4381.2,4381.0,0.7915]
[1760016910693,0.41068,4381.2,4381.0,41.5915]
[1760016910893,0.41068,4381.2,4381.1,0.5572]
[1760016911091,3.4388,4381.3,4381.1,0.5572]
[1760016911401,3.84947,4381.3,4381.0,41.44499]
[1760016911703,0.41068,4381.2,4381.1,0.5572]
[1760016912800,0.41068,4381.2,4381.0,40.8]
[1760016913004,0.41068,4381.2,4380.7,0.00277254]
[1760016913005,0.41071,4380.8,4380.7,0.00277254]
[1760016913303,0.41082,4379.7,4379.6,0.5765]
[1760016913499,0.41082,4379.7,4379.6,41.3765]
[1760016914296,0.41081,4379.8,4379.7,0.5765]
[1760016914901,3.2078,4379.9,4379.6,40.80169199]
[1760016915106,3.2078,4379.9,4379.7,0.5765]
[1760016915300,3.2078,4379.9,4379.6,40.80169199]
[1760016915701,3.2078,4379.9,4379.7,0.5765]
[1760016915898,0.41082,4379.8,4379.7,0.5765]
[1760016916098,0.64182,4379.8,4379.6,0.00169199]
[1760016916295,0.231,4379.8,4379.7,0.5765]
[1760016919102,0.41082,4379.7,4379.6,0.00169199]
[1760016919609,0.41097,4378.1,4378.0,0.7904]
[1760016920407,0.00165164,4378.1,4378.0,41.59235956]
[1760016922004,0.00165164,4378.1,4378.0,0.00195956]
[1760016924898,7.90512812,4378.1,4378.0,0.00195956]
[1760016925603,2.90512812,4378.1,4378.0,0.00195956]
[1760016925809,0.23265164,4378.1,4378.0,0.79235956]
[1760016926104,0.23265164,4378.1,4378.0,0.00195956]
[1760016926312,3.18798069,4378.1,4378.0,0.00195956]
[1760016926504,0.41098,4378.0,4377.9,0.02284226]
[1760016926707,0.41111,4376.6,4376.5,0.7904]
[1760016927209,3.4388,4376.7,4376.6,0.5765]
[1760016927608,3.4388,4376.7,4376.6,0.57810379]
[1760016928010,3.2078,4376.7,4376.6,0.57810379]
[1760016929206,0.41108,4376.9,4376.7,0.4111]
[1760016929610,0.41105,4377.2,4377.1,0.5765]
[1760016930013,0.4111,4376.7,4376.6,0.57810379]
[1760016930305,3.4388,4376.8,4376.6,0.00160379]
[1760016930510,0.231,4376.7,4376.6,0.00160379]
[1760016930902,0.231,4377.0,4376.7,0.5765]
[1760016931108,0.64208,4377.0,4376.8,0.41108]
[1760016931307,0.64208,4377.0,4376.7,0.5765]
[1760016931308,0.41109,4376.9,4376.7,0.5765]
[1760016931502,0.4111,4376.7,4376.6,0.00160379]
[1760016931712,0.4111,4376.7,4376.6,0.57810379]
[1760016932409,3.2078,4377.3,4377.1,0.5765]
[1760016932613,3.2078,4377.3,4377.2,0.5765]
[1760016933014,3.2078,4377.3,4377.2,41.3765]
[1760016933413,3.2078,4377.3,4377.2,46.3765]
[1760016933615,0.4137,4377.8,4377.7,0.41101]
[1760016933811,0.1827,4377.8,4377.7,0.5765]
[1760016934213,0.1827,4377.8,4377.7,41.3765]
[1760016934811,3.55891774,4377.8,4377.7,40.8]
[1760016935115,3.55891774,4377.8,4376.7,0.41109]
[1760016935116,0.41109,4376.9,4376.7,0.41109]
[1760016935318,0.41109,4376.8,4376.7,0.5765]
[1760016935513,0.83249,4376.8,4376.6,0.00160379]
[1760016936012,0.41109,4376.8,4376.6,0.00160379]
[1760016936219,0.231,4376.9,4376.7,0.5765]
[1760016936622,0.64208,4376.9,4376.7,0.5765]
[1760016937422,3.2078,4377.6,4377.0,0.5765]
[1760016937611,0.231,4377.5,4377.2,0.98755]
[1760016937812,0.231,4377.5,4377.2,0.5765]
[1760016938016,0.231,4377.5,4377.0,0.2139]
[1760016938213,0.231,4377.5,4377.1,0.5765]
[1760016938420,0.41105,4377.2,4376.6,3.20940379]
[1760016938619,0.231,4377.1,4377.0,0.41107]
[1760016938918,0.41104,4377.3,4377.1,0.5765]
[1760016939118,0.231,4377.2,4377.1,0.5765]
[1760016939323,0.231,4377.2,4376.6,0.57810379]
[1760016939623,0.4214,4376.7,4376.6,0.00160379]
[1760016939822,0.6524,4376.7,4376.6,0.00160379]
[1760016940322,1.02785,4376.3,4375.5,3.4217]
[1760016940517,0.4112,4375.7,4375.5,3.4217]
[1760016940723,0.4112,4375.7,4375.6,0.5765]
[1760016941321,0.8326,4375.7,4375.6,0.00249714]
[1760016941524,4.58850102,4375.7,4375.6,0.00249714]
[1760016941931,0.41128,4374.8,4374.5,3.4217]
[1760016942124,0.231,4374.8,4374.6,0.98779]
[1760016942331,0.231,4374.8,4374.7,0.5765]
[1760016942631,0.4286,4374.6,4373.8,0.5951]
[1760016942823,0.54804324,4374.5,4374.1,0.5951]
[1760016943022,0.00283713,4374.6,4374.5,1.24201]
[1760016943222,1.61491386,4376.4,4374.5,1.24201]
[1760016943223,3.2078,4376.4,4375.6,0.5951]